fUST/lending_fUST_20250203
["ID","MTS","AMOUNT","RATE_DAILY","PERIOD"]
[351348968,1738529448768,-291.576129,0.00017397,2]
[351348969,1738529448778,-500.0,0.00017397,2]
[351348970,1738529448788,-181.76,0.00017397,2]
[351348971,1738529448798,-598.67,0.00017397,2]
[351348972,1738529448808,-500.0,0.00017397,2]
[351348973,1738529448818,-500.0,0.00017397,2]
[351348974,1738529448828,-157.369298,0.00017397,2]
[351348975,1738529448837,-1754.59,0.00017397,2]
[351348976,1738529448847,-500.0,0.00017397,2]
[351348977,1738529448857,-500.0,0.00017397,2]
[351348978,1738529448867,-1489.58,0.00017397,2]
[351348979,1738529448876,-886.0,0.00017397,2]
[351348980,1738529448885,-2201.5,0.00017397,2]
[351348981,1738529448895,-707.65,0.00017397,2]
[351348982,1738529448904,-529.48,0.00017397,2]
[351348983,1738529448914,-10551.57,0.00017397,2]
[351348984,1738529448924,-151.0,0.00017397,2]
[351348985,1738529448934,-780.93,0.00017397,2]
[351348986,1738529448943,-151.0,0.00017397,2]
[351348987,1738529448953,-500.0,0.00017397,2]
[351348988,1738529448964,-182.92,0.00017397,2]
[351348989,1738529448977,-771.99,0.00017397,2]
[351348990,1738529448987,-7436.42,0.00017397,2]
[351348991,1738529448997,-907.25,0.00017397,2]
[351348992,1738529449008,-1526.16,0.00017397,2]
[351348993,1738529449017,-1845.65,0.00017397,2]
[351348994,1738529449028,-4602.44,0.00017397,2]
[351348995,1738529449038,-694.72,0.00017397,2]
[351348996,1738529449048,-1733.12,0.00017397,2]
[351348997,1738529449058,-500.0,0.00017397,2]
[351348998,1738529449069,-500.0,0.00017397,2]
[351348999,1738529449078,-500.0,0.00017397,2]
[351349000,1738529449088,-1090.1,0.00017397,2]
[351349001,1738529449099,-500.0,0.00017397,2]
[351349002,1738529449109,-1252.45,0.00017397,2]
[351349003,1738529449119,-1315.04,0.00017397,2]
[351349004,1738529449129,-1806.4,0.00017397,2]
[351349005,1738529449228,-2649.11,0.00017397,2]
[351349006,1738529449238,-500.0,0.00017397,2]
[351349007,1738529449248,-151.0,0.000174,2]
[351349008,1738529449258,-151.0,0.000174,2]
[351349009,1738529449269,-1000.0,0.00017407,2]
[351349010,1738529449282,-500.05137806,0.00017407,2]
[351349011,1738529449293,-600.0,0.0001746,2]
[351349012,1738529449304,-294.0,0.0001747,2]
[351349013,1738529449315,-151.0,0.0001747,2]
[351349014,1738529449325,-1591.69,0.000175,2]
[351349015,1738529449336,-151.0,0.000175,2]
[351349016,1738529449346,-151.0,0.000175,2]
[351349017,1738529449355,-434.46096494,0.00017533,2]
[351349018,1738529449365,-181.179749,0.00017533,2]
[351349019,1738529449376,-181.179749,0.00017533,2]
[351349020,1738529449386,-151.0,0.00017533,2]
[351349021,1738529449397,-151.0,0.00017533,2]
[351349022,1738529449407,-6451.62,0.00017533,2]
[351349023,1738529449417,-500.0,0.00017533,2]
[351349024,1738529449427,-151.0,0.00017533,2]
[351349025,1738529449436,-1014.658576,0.00017533,2]
[351349026,1738529449446,-1014.658576,0.00017533,2]
[351349027,1738529449455,-151.0,0.00017533,2]
[351349028,1738529449465,-288.738028,0.00017534,2]
[351349029,1738529449478,-288.738028,0.00017534,2]
[351349030,1738529449488,-500.0,0.00017534,2]
[351349031,1738529449498,-151.0,0.00017534,2]
[351349032,1738529449507,-445.982438,0.00017534,2]
[351349033,1738529449516,-445.982438,0.00017534,2]
[351349034,1738529449526,-605.23,0.00017534,2]
[351349035,1738529449535,-398.142339,0.00017534,2]
[351349036,1738529449545,-500.0,0.00017534,2]
[351349037,1738529449555,-398.142339,0.00017534,2]
[351349038,1738529449564,-232.054908,0.00017534,2]
[351349039,1738529449573,-291.576129,0.00017534,2]
[351349040,1738529449582,-232.054908,0.00017534,2]
[351349041,1738529449592,-291.576129,0.00017534,2]
[351349042,1738529449602,-646.4,0.00017534,2]
[351349043,1738529449611,-598.67,0.00017534,2]
[351349044,1738529449620,-500.0,0.00017534,2]
[351349045,1738529449630,-500.0,0.00017534,2]
[351349046,1738529449646,-1754.59,0.00017534,2]
[351349047,1738529449655,-500.0,0.00017534,2]
[351349048,1738529449665,-500.0,0.00017534,2]
[351349049,1738529449675,-1489.58,0.00017534,2]
[351349050,1738529449685,-886.0,0.00017534,2]
[351349051,1738529449695,-2201.5,0.00017534,2]
[351349052,1738529449710,-707.65,0.00017534,2]
[351349053,1738529449722,-529.48,0.00017534,2]
[351349054,1738529449732,-10551.57,0.00017534,2]
[351349055,1738529449741,-151.0,0.00017534,2]
[351349056,1738529449751,-780.93,0.00017534,2]
[351349057,1738529449761,-164.320619,0.00017534,2]
[351349058,1738529449771,-500.0,0.00017534,2]
[351349059,1738529449780,-771.99,0.00017534,2]
[351349060,1738529449790,-7436.42,0.00017534,2]
[351349061,1738529449799,-907.25,0.00017534,2]
[351349062,1738529449809,-1526.16,0.00017534,2]
[351349063,1738529449819,-1845.65,0.00017534,2]
[351349064,1738529449828,-4602.44,0.00017534,2]
[351349065,1738529449837,-694.72,0.00017534,2]
[351349066,1738529449847,-1733.12,0.00017534,2]
[351349067,1738529449856,-245.95383847,0.00017534,2]
[351349068,1738529449866,-500.0,0.00017534,2]
[351349069,1738529449875,-500.0,0.00017534,2]
[351349070,1738529449884,-151.0,0.00017534,2]
[351349071,1738529449894,-1090.1,0.00017534,2]
[351349072,1738529449903,-204.240528,0.00017534,2]
[351349073,1738529449911,-500.0,0.00017534,2]
[351349074,1738529449921,-1252.45,0.00017534,2]
[351349075,1738529449931,-1315.04,0.00017534,2]
[351349076,1738529449941,-1806.4,0.00017534,2]
[351349077,1738529449950,-2649.11,0.00017534,2]
[351349078,1738529449959,-151.0,0.00017534,2]
[351349079,1738529449971,-153.74705125,0.00017534,2]
[351349080,1738529449981,-169.205077,0.00017542,5]
[351349081,1738529449992,-167.43,0.00017556,2]
[351349082,1738529450002,-151.0,0.000176,2]
[351349083,1738529450013,-151.0,0.000176,2]
[351349084,1738529450022,-621.0,0.000176,2]
[351349085,1738529450033,-151.0,0.00017631,2]
[351349086,1738529450044,-1200.0,0.00017631,2]
[351349087,1738529450054,-500.0,0.00017631,2]
[351349088,1738529450066,-169.205077,0.00017638,7]
[351349089,1738529450077,-169.205077,0.0001764,15]
[351349090,1738529450088,-600.0,0.0001764,2]
[351349091,1738529450100,-6451.62,0.0001767,2]
[351349092,1738529450111,-500.0,0.0001767,2]
[351349093,1738529450121,-151.0,0.00017671,2]
[351349094,1738529450132,-525.07,0.00017671,2]
[351349095,1738529450143,-151.47,0.00017671,2]
[351349096,1738529450153,-151.47,0.00017671,2]
[351349097,1738529450163,-151.47,0.00017671,2]
[351349098,1738529450173,-151.47,0.00017671,2]
[351349099,1738529450183,-151.51802668,0.00017671,2]
[351349100,1738529450198,-445.982438,0.00017671,2]
[351349101,1738529450209,-2500.0,0.00017671,2]
[351349102,1738529450223,-445.982438,0.00017671,2]
[351349103,1738529450236,-605.23,0.00017671,2]
[351349104,1738529450248,-398.142339,0.00017671,2]
[351349105,1738529450259,-500.0,0.00017671,2]
[351349106,1738529450270,-398.142339,0.00017671,2]
[351349107,1738529450280,-232.054908,0.00017671,2]
[351349108,1738529450295,-232.054908,0.00017671,2]
[351349109,1738529450306,-181.179749,0.00017671,2]
[351349110,1738529450316,-181.179749,0.00017671,2]
[351349111,1738529450326,-598.67,0.00017671,2]
[351349112,1738529450336,-500.0,0.00017671,2]
[351349113,1738529450346,-500.0,0.00017671,2]
[351349114,1738529450356,-1754.59,0.00017671,2]
[351349115,1738529450366,-500.0,0.00017671,2]
[351349116,1738529450376,-151.0,0.00017671,2]
[351349117,1738529450386,-177.1,0.00017671,2]
[351349118,1738529450396,-151.0,0.00017671,2]
[351349119,1738529450406,-1489.58,0.00017671,2]
[351349120,1738529450415,-886.0,0.00017671,2]
[351349121,1738529450425,-151.0,0.00017671,2]
[351349122,1738529450435,-2201.5,0.00017671,2]
[351349123,1738529450445,-707.65,0.00017671,2]
[351349124,1738529450455,-529.48,0.00017671,2]
[351349125,1738529450464,-10551.57,0.00017671,2]
[351349126,1738529450480,-151.0,0.00017671,2]
[351349127,1738529450490,-780.93,0.00017671,2]
[351349128,1738529450501,-500.0,0.00017671,2]
[351349129,1738529450510,-771.99,0.00017671,2]
[351349130,1738529450520,-7436.42,0.00017671,2]
[351349131,1738529450529,-907.25,0.00017671,2]
[351349132,1738529450540,-1526.16,0.00017671,2]
[351349133,1738529450551,-1014.658576,0.00017671,2]
[351349134,1738529450560,-1014.658576,0.00017671,2]
[351349135,1738529450570,-1845.65,0.00017671,2]
[351349136,1738529450580,-4602.44,0.00017671,2]
[351349137,1738529450590,-694.72,0.00017671,2]
[351349138,1738529450600,-1733.12,0.00017671,2]
[351349139,1738529450610,-151.0,0.00017671,2]
[351349140,1738529450620,-500.0,0.00017671,2]
[351349141,1738529450631,-500.0,0.00017671,2]
[351349142,1738529450642,-151.0,0.00017671,2]
[351349143,1738529450652,-1090.1,0.00017671,2]
[351349144,1738529450661,-500.0,0.00017671,2]
[351349145,1738529450670,-1252.45,0.00017671,2]
[351349146,1738529450679,-1315.04,0.00017671,2]
[351349147,1738529450689,-1806.4,0.00017671,2]
[351349148,1738529450699,-2649.11,0.00017671,2]
[351349149,1738529450708,-235.062511,0.00017671,2]
[351349150,1738529450723,-151.0,0.000177,2]
[351349151,1738529450732,-151.0,0.000177,2]
[351349152,1738529450743,-288.738028,0.000177,2]
[351349153,1738529450753,-288.738028,0.000177,2]
[351349154,1738529450763,-151.0,0.000177,2]
[351349155,1738529450773,-3948.94848542,0.000177,2]
[351349156,1738529450782,-151.0,0.000177,2]
[351349157,1738529450792,-151.0,0.00017716,2]
[351349158,1738529450802,-151.0,0.00017716,2]
[351349159,1738529450812,-151.0,0.00017716,2]
[351349160,1738529450823,-151.0,0.00017716,2]
[351349161,1738529450832,-151.0,0.00017716,2]
[351349162,1738529450842,-151.0,0.00017716,2]
[351349163,1738529450926,-151.02,0.00017716,2]
[351349164,1738529450936,-152.0,0.00017716,2]
[351349165,1738529450945,-152.0,0.00017716,2]
[351349166,1738529450955,-152.0,0.00017716,2]
[351349167,1738529450965,-152.0,0.00017716,2]
[351349168,1738529450980,-152.0,0.00017716,2]
[351349169,1738529450989,-152.0,0.00017716,2]
[351349170,1738529450999,-152.0,0.00017716,2]
[351349171,1738529451010,-155.99,0.00017716,2]
[351349172,1738529451020,-3948.94848537,0.00017722,2]
[351349173,1738529451030,-291.576129,0.00017744,2]
[351349174,1738529451041,-291.576129,0.00017744,2]
[351349175,1738529451050,-3948.94848537,0.00017744,2]
[351349176,1738529451060,-153.74705125,0.00017753,2]
[351349177,1738529451071,-160.0,0.00017759,3]
[351349178,1738529451081,-3948.94848537,0.00017767,2]
[351349179,1738529451090,-500.0,0.00017768,2]
[351349180,1738529451100,-500.0,0.00017773,2]
[351349181,1738529451110,-500.0,0.00017773,2]
[351349182,1738529451121,-500.0,0.00017773,2]
[351349183,1738529451131,-3948.94848537,0.00017789,2]
[351349184,1738529451141,-14829.79292991,0.000178,15]
[351349185,1738529451159,-1500.0,0.000178,15]
[351349186,1738529451171,-35395.90622149,0.000178,15]
[351349187,1738529587558,54.51864871,0.00013973,2]
[351349188,1738529587600,244.08881729,0.00013973,2]
[351349212,1738530427858,293.163398,0.00013973,2]
[351349218,1738530439174,602.76,0.00010959,2]
[351349277,1738530638207,-500.0,0.00015753,2]
[351349278,1738530638217,-300.0,0.00016099,2]
[351349279,1738530638226,-107114.38420269,0.000161,2]
[351349280,1738530638236,-340.10285572,0.00016147,2]
[351349281,1738530638246,-265.75736675,0.00016247,2]
[351349282,1738530638256,-340.10285568,0.00016397,2]
[351349283,1738530638266,-240.63028843,0.00016437,2]
[351349284,1738530638275,-500.0,0.00016437,2]
[351349285,1738530638284,-500.0,0.00016437,2]
[351349286,1738530638293,-227.80891633,0.00016437,2]
[351349287,1738530638303,-500.0,0.00016437,2]
[351349288,1738530638313,-368.24050181,0.00016437,2]
[351349289,1738530638322,-500.0,0.00016437,2]
[351349290,1738530638332,-500.0,0.00016437,2]
[351349291,1738530638342,-500.0,0.00016437,2]
[351349292,1738530638352,-500.0,0.00016437,2]
[351349293,1738530638362,-500.0,0.00016437,2]
[351349294,1738530638372,-500.0,0.00016437,2]
[351349295,1738530638383,-581.73117537,0.00016437,2]
[351349296,1738530638393,-500.0,0.00016437,2]
[351349297,1738530638402,-500.0,0.00016437,2]
[351349298,1738530638412,-500.0,0.00016437,2]
[351349299,1738530638422,-500.0,0.00016437,2]
[351349300,1738530638431,-500.0,0.00016437,2]
[351349301,1738530638441,-500.0,0.00016437,2]
[351349302,1738530638450,-500.0,0.00016437,2]
[351349303,1738530638460,-500.0,0.00016437,2]
[351349304,1738530638470,-500.0,0.00016437,2]
[351349305,1738530638480,-500.0,0.00016437,2]
[351349306,1738530638489,-500.0,0.00016437,2]
[351349307,1738530638499,-500.70490807,0.00016438,2]
[351349308,1738530638508,-500.0,0.00016438,2]
[351349309,1738530638518,-500.0,0.00016438,2]
[351349310,1738530638528,-500.0,0.00016438,2]
[351349311,1738530638538,-500.0,0.00016438,2]
[351349312,1738530638547,-321.59945537,0.00016438,2]
[351349313,1738530638557,-500.0,0.00016438,2]
[351349314,1738530638567,-618.33425261,0.00016438,2]
[351349315,1738530638576,-447.27786756,0.00016438,2]
[351349316,1738530638586,-500.0,0.00016438,2]
[351349317,1738530638597,-500.0,0.00016438,2]
[351349318,1738530638610,-500.0,0.00016438,2]
[351349319,1738530638619,-186.16168092,0.00016438,2]
[351349320,1738530638629,-500.0,0.00016438,2]
[351349321,1738530638639,-500.0,0.00016438,2]
[351349322,1738530638649,-500.0,0.00016438,2]
[351349323,1738530638659,-500.0,0.00016438,2]
[351349324,1738530638669,-500.0,0.00016438,2]
[351349325,1738530638679,-500.0,0.00016438,2]
[351349326,1738530638688,-500.0,0.00016438,2]
[351349327,1738530638698,-500.0,0.00016438,2]
[351349328,1738530638708,-187.25,0.00016438,2]
[351349329,1738530638720,-500.0,0.00016438,2]
[351349330,1738530638730,-500.0,0.00016438,2]
[351349331,1738530638741,-500.0,0.00016438,2]
[351349332,1738530638751,-500.0,0.00016438,2]
[351349333,1738530638761,-500.0,0.00016438,2]
[351349334,1738530638771,-500.0,0.00016438,2]
[351349335,1738530638781,-500.0,0.00016438,2]
[351349336,1738530638791,-500.0,0.00016438,2]
[351349337,1738530638801,-500.0,0.00016438,2]
[351349338,1738530638811,-500.0,0.00016438,2]
[351349339,1738530638820,-500.0,0.00016438,2]
[351349340,1738530638830,-500.0,0.00016438,2]
[351349341,1738530638840,-500.0,0.00016438,2]
[351349342,1738530638850,-533.28987329,0.00016438,2]
[351349343,1738530638860,-510.27740731,0.00016438,2]
[351349344,1738530638869,-500.0,0.00016438,2]
[351349345,1738530638879,-500.0,0.00016438,2]
[351349346,1738530638889,-500.60532651,0.00016438,2]
[351349347,1738530638899,-500.0,0.00016438,2]
[351349348,1738530638911,-500.0,0.00016438,2]
[351349349,1738530638921,-500.0,0.00016438,2]
[351349350,1738530638931,-500.0,0.00016438,2]
[351349351,1738530638940,-500.0,0.00016438,2]
[351349352,1738530638951,-519.25762796,0.00016438,2]
[351349353,1738530638961,-500.0,0.00016438,2]
[351349354,1738530638974,-500.0,0.00016438,2]
[351349355,1738530638984,-500.0,0.00016438,2]
[351349356,1738530638994,-500.0,0.00016438,2]
[351349357,1738530639003,-500.0,0.00016438,2]
[351349358,1738530639013,-500.0,0.00016438,2]
[351349359,1738530639023,-502.61301712,0.00016438,2]
[351349360,1738530639033,-500.0,0.00016438,2]
[351349361,1738530639043,-500.0,0.00016438,2]
[351349362,1738530639053,-500.0,0.00016438,2]
[351349363,1738530639062,-500.0,0.00016438,2]
[351349364,1738530639072,-500.0,0.00016438,2]
[351349365,1738530639082,-500.0,0.00016438,2]
[351349366,1738530639092,-500.0,0.00016438,2]
[351349367,1738530639101,-500.0,0.00016438,2]
[351349368,1738530639111,-500.0,0.00016438,2]
[351349369,1738530639120,-500.0,0.00016438,2]
[351349370,1738530639130,-500.0,0.00016438,2]
[351349371,1738530639140,-500.0,0.00016438,2]
[351349372,1738530639149,-500.0,0.00016438,2]
[351349373,1738530639159,-549.71208941,0.00016438,2]
[351349374,1738530639169,-200.0,0.00016438,2]
[351349375,1738530639178,-208.54312881,0.00016438,2]
[351349376,1738530639188,-500.0,0.00016438,2]
[351349377,1738530639198,-500.0,0.00016438,2]
[351349378,1738530639208,-500.0,0.00016438,2]
[351349379,1738530639218,-500.0,0.00016438,2]
[351349380,1738530639233,-500.0,0.00016438,2]
[351349381,1738530639242,-500.0,0.00016438,2]
[351349382,1738530639253,-517.74225176,0.00016438,2]
[351349383,1738530639263,-500.0,0.00016438,2]
[351349384,1738530639273,-500.0,0.00016438,2]
[351349385,1738530639283,-500.0,0.00016438,2]
[351349386,1738530639292,-500.0,0.00016438,2]
[351349387,1738530639302,-500.0,0.00016438,2]
[351349388,1738530639313,-370.65379041,0.00016438,2]
[351349389,1738530639323,-500.0,0.00016438,2]
[351349390,1738530639334,-500.0,0.00016438,2]
[351349391,1738530639344,-500.0,0.00016438,2]
[351349392,1738530639354,-214.30566055,0.00016438,2]
[351349393,1738530639363,-500.0,0.00016438,2]
[351349394,1738530639373,-500.0,0.00016438,2]
[351349395,1738530639382,-500.0,0.00016438,2]
[351349396,1738530639392,-500.0,0.00016438,2]
[351349397,1738530639401,-500.0,0.00016438,2]
[351349398,1738530639412,-500.0,0.00016438,2]
[351349399,1738530639422,-500.0,0.00016438,2]
[351349400,1738530639432,-500.0,0.00016438,2]
[351349401,1738530639441,-500.0,0.00016438,2]
[351349402,1738530639451,-500.0,0.00016438,2]
[351349403,1738530639461,-500.0,0.00016438,2]
[351349404,1738530639474,-772.16,0.00016438,2]
[351349405,1738530639484,-500.0,0.00016438,2]
[351349406,1738530639494,-500.0,0.00016438,2]
[351349407,1738530639503,-931.48,0.00016438,2]
[351349408,1738530639513,-500.0,0.00016438,2]
[351349409,1738530639523,-500.0,0.00016438,2]
[351349410,1738530639532,-500.0,0.00016438,2]
[351349411,1738530639542,-500.0,0.00016438,2]
[351349412,1738530639551,-1279.53,0.00016438,2]
[351349413,1738530639561,-500.0,0.00016438,2]
[351349414,1738530639572,-500.0,0.00016438,2]
[351349415,1738530639582,-500.0,0.00016438,2]
[351349416,1738530639592,-500.0,0.00016438,2]
[351349417,1738530639603,-500.0,0.00016438,2]
[351349418,1738530639617,-500.0,0.00016438,2]
[351349419,1738530639626,-500.0,0.00016438,2]
[351349420,1738530639636,-500.0,0.00016438,2]
[351349421,1738530639646,-500.0,0.00016438,2]
[351349422,1738530639656,-7474.03,0.00016438,2]
[351349423,1738530639666,-500.0,0.00016438,2]
[351349424,1738530639676,-500.0,0.00016438,2]
[351349425,1738530639686,-500.0,0.00016438,2]
[351349426,1738530639696,-500.0,0.00016438,2]
[351349427,1738530639706,-500.0,0.00016438,2]
[351349428,1738530639716,-500.0,0.00016438,2]
[351349429,1738530639733,-500.0,0.00016438,2]
[351349430,1738530639743,-500.0,0.00016438,2]
[351349431,1738530639753,-500.0,0.00016438,2]
[351349432,1738530639764,-500.0,0.00016438,2]
[351349433,1738530639775,-500.0,0.00016438,2]
[351349434,1738530639785,-1055.11,0.00016438,2]
[351349436,1738530639795,-629.68042673,0.00016438,2]
[351349437,1738530639805,-553.16,0.00016438,2]
[351349439,1738530639815,-627.58,0.00016438,2]
[351349440,1738530639824,-500.0,0.00016438,2]
[351349441,1738530639834,-573.9,0.00016438,2]
[351349442,1738530639843,-573.9,0.00016438,2]
[351349443,1738530639853,-573.9,0.00016438,2]
[351349444,1738530639862,-501.25,0.00016438,2]
[351349446,1738530639872,-573.9,0.00016438,2]
[351349447,1738530639882,-573.9,0.00016438,2]
[351349448,1738530639891,-573.9,0.00016438,2]
[351349449,1738530639900,-573.9,0.00016438,2]
[351349450,1738530639910,-500.0,0.00016438,2]
[351349451,1738530639919,-573.9,0.00016438,2]
[351349452,1738530639928,-573.9,0.00016438,2]
[351349453,1738530639938,-500.0,0.00016438,2]
[351349454,1738530639947,-358.01091777,0.00016438,2]
[351349455,1738530639957,-500.0,0.00016438,2]
[351349456,1738530639966,-500.0,0.00016438,2]
[351349457,1738530639979,-1559.39,0.00016438,2]
[351349459,1738530639987,-5486.26,0.00016438,2]
[351349460,1738530639996,-500.0,0.00016438,2]
[351349461,1738530640006,-1081.03,0.00016438,2]
[351349462,1738530640015,-500.0,0.00016438,2]
[351349463,1738530640024,-500.0,0.00016438,2]
[351349464,1738530640033,-500.0,0.00016438,2]
[351349465,1738530640043,-500.0,0.00016438,2]
[351349466,1738530640052,-500.0,0.00016438,2]
[351349467,1738530640061,-500.0,0.00016438,2]
[351349468,1738530640071,-546.83,0.00016438,2]
[351349469,1738530640080,-500.0,0.00016438,2]
[351349470,1738530640089,-642.63,0.00016438,2]
[351349471,1738530640099,-500.0,0.00016438,2]
[351349473,1738530640108,-500.0,0.00016438,2]
[351349474,1738530640118,-500.0,0.00016438,2]
[351349475,1738530640128,-500.0,0.00016438,2]
[351349476,1738530640137,-1227.63,0.00016438,2]
[351349477,1738530640147,-3572.56,0.00016438,2]
[351349478,1738530640156,-500.0,0.00016438,2]
[351349479,1738530640166,-500.0,0.00016438,2]
[351349480,1738530640175,-2791.66,0.00016438,2]
[351349481,1738530640185,-500.0,0.00016438,2]
[351349482,1738530640194,-500.0,0.00016438,2]
[351349483,1738530640204,-291.15840725,0.00016438,2]
[351349484,1738530640214,-500.0,0.00016438,2]
[351349485,1738530640226,-500.0,0.00016438,2]
[351349486,1738530640236,-500.0,0.00016438,2]
[351349487,1738530640246,-500.0,0.00016438,2]
[351349488,1738530640256,-1307.34,0.00016438,2]
[351349489,1738530640265,-1169.72,0.00016438,2]
[351349490,1738530640275,-500.0,0.00016438,2]
[351349491,1738530640285,-500.0,0.00016438,2]
[351349492,1738530640301,-500.0,0.00016438,2]
[351349493,1738530640316,-500.0,0.00016438,2]
[351349494,1738530640327,-500.0,0.00016438,2]
[351349495,1738530640337,-887.15,0.00016438,2]
[351349496,1738530640346,-500.0,0.00016438,2]
[351349497,1738530640356,-500.0,0.00016438,2]
[351349498,1738530640365,-614.6135912,0.000165,2]
[351349499,1738530640375,-354.4946044,0.000165,2]
[351349500,1738530640385,-500.0,0.00016574,2]
[351349501,1738530640538,-500.0,0.00016574,2]
[351349502,1738530640548,-500.0,0.00016574,2]
[351349503,1738530640558,-573.9,0.00016574,2]
[351349504,1738530640568,-573.9,0.00016574,2]
[351349505,1738530640578,-573.9,0.00016574,2]
[351349506,1738530640588,-619.50000805,0.00016574,2]
[351349507,1738530640598,-500.0,0.00016575,2]
[351349508,1738530640614,-500.0,0.00016575,2]
[351349509,1738530640624,-500.0,0.00016575,2]
[351349510,1738530640633,-500.0,0.00016575,2]
[351349511,1738530640643,-500.0,0.00016575,2]
[351349512,1738530640655,-500.0,0.00016575,2]
[351349513,1738530640665,-500.0,0.00016575,2]
[351349514,1738530640675,-500.0,0.00016575,2]
[351349515,1738530640685,-500.0,0.00016575,2]
[351349516,1738530640695,-500.0,0.00016575,2]
[351349517,1738530640705,-500.0,0.00016575,2]
[351349518,1738530640716,-500.0,0.00016575,2]
[351349519,1738530640728,-500.0,0.00016575,2]
[351349520,1738530640738,-500.0,0.00016575,2]
[351349521,1738530640747,-500.0,0.00016575,2]
[351349522,1738530640757,-500.0,0.00016575,2]
[351349523,1738530640766,-500.0,0.00016575,2]
[351349524,1738530640776,-500.0,0.00016575,2]
[351349525,1738530640786,-500.0,0.00016575,2]
[351349526,1738530640796,-500.0,0.00016575,2]
[351349527,1738530640805,-500.0,0.00016575,2]
[351349528,1738530640815,-500.0,0.00016575,2]
[351349529,1738530640824,-500.0,0.00016575,2]
[351349530,1738530640834,-500.0,0.00016575,2]
[351349531,1738530640843,-500.0,0.00016575,2]
[351349532,1738530640852,-500.0,0.00016575,2]
[351349533,1738530640862,-500.0,0.00016575,2]
[351349534,1738530640871,-500.0,0.00016575,2]
[351349535,1738530640880,-500.0,0.00016575,2]
[351349536,1738530640890,-500.0,0.00016575,2]
[351349537,1738530640899,-500.0,0.00016575,2]
[351349538,1738530640908,-500.0,0.00016575,2]
[351349539,1738530640917,-500.0,0.00016575,2]
[351349540,1738530640927,-500.0,0.00016575,2]
[351349541,1738530640936,-500.0,0.00016575,2]
[351349542,1738530640946,-500.0,0.00016575,2]
[351349543,1738530640955,-500.0,0.00016575,2]
[351349544,1738530640964,-477.99369715,0.00016575,2]
[351349545,1738530640976,-500.0,0.00016575,2]
[351349546,1738530640986,-500.0,0.00016575,2]
[351349547,1738530640995,-500.0,0.00016575,2]
[351349548,1738530641004,-500.0,0.00016575,2]
[351349549,1738530641014,-500.0,0.00016575,2]
[351349550,1738530641023,-500.0,0.00016575,2]
[351349551,1738530641032,-500.0,0.00016575,2]
[351349552,1738530641041,-500.0,0.00016575,2]
[351349553,1738530641050,-500.0,0.00016575,2]
[351349554,1738530641059,-500.0,0.00016575,2]
[351349555,1738530641068,-500.0,0.00016575,2]
[351349556,1738530641078,-500.0,0.00016575,2]
[351349557,1738530641088,-772.16,0.00016575,2]
[351349558,1738530641097,-500.0,0.00016575,2]